fUST/lending_fUST_20241026
["ID","MTS","AMOUNT","RATE_DAILY","PERIOD"]
[340859123,1729951847115,-500.0,0.00024599,2]
[340859125,1729951847125,-500.0,0.00024599,2]
[340859127,1729951847135,-500.0,0.00024599,2]
[340859129,1729951847145,-500.0,0.00024599,2]
[340859131,1729951847154,-500.0,0.00024599,2]
[340859133,1729951847165,-500.0,0.00024599,2]
[340859135,1729951847174,-500.0,0.00024599,2]
[340859137,1729951847186,-500.0,0.00024599,2]
[340859139,1729951847198,-500.0,0.00024599,2]
[340859141,1729951847208,-500.0,0.00024599,2]
[340859144,1729951847219,-500.0,0.00024599,2]
[340859146,1729951847229,-500.0,0.00024599,2]
[340859148,1729951847240,-500.0,0.00024599,2]
[340859150,1729951847249,-500.0,0.00024599,2]
[340859152,1729951847260,-500.0,0.00024599,2]
[340859154,1729951847269,-500.0,0.00024599,2]
[340859156,1729951847281,-500.0,0.00024599,2]
[340859158,1729951847291,-500.0,0.00024599,2]
[340859160,1729951847302,-500.0,0.00024599,2]
[340859162,1729951847311,-500.0,0.00024599,2]
[340859164,1729951847321,-500.0,0.00024599,2]
[340859166,1729951847332,-500.0,0.00024599,2]
[340859168,1729951847342,-500.0,0.00024599,2]
[340859171,1729951847352,-500.0,0.00024599,2]
[340859173,1729951847364,-500.0,0.00024599,2]
[340859175,1729951847374,-500.0,0.00024599,2]
[340859177,1729951847383,-500.0,0.00024599,2]
[340859179,1729951847393,-500.0,0.00024599,2]
[340859181,1729951847402,-500.0,0.00024599,2]
[340859183,1729951847412,-500.0,0.00024599,2]
[340859185,1729951847421,-500.0,0.00024599,2]
[340859187,1729951847431,-231.73904098,0.00024599,2]
[340859189,1729951847440,-500.0,0.00024599,2]
[340859191,1729951847450,-111988.44422385,0.000246,2]
[340859193,1729951847460,-153.0,0.00024603,2]
[340859195,1729951847470,-153.0,0.00024603,2]
[340859197,1729951847480,-153.0,0.00024603,2]
[340859199,1729951847489,-5000.0,0.00024619,2]
[340859201,1729951847497,-151.0,0.00024658,7]
[340859203,1729951847507,-151.0,0.00024658,7]
[340859205,1729951847517,-151.0,0.00024658,7]
[340859207,1729951847526,-151.0,0.00024658,7]
[340859209,1729951847536,-151.0,0.00024658,7]
[340859211,1729951847546,-229.381937,0.00024658,7]
[340859213,1729951847555,-5000.0,0.00024658,2]
[340859216,1729951847565,-994.90478624,0.0002468,3]
[340859217,1729951847576,-994.90478624,0.0002469,3]
[340859220,1729951847585,-151.0,0.00024698,2]
[340859221,1729951847595,-4295.20007624,0.00024698,2]
[340859223,1729951847604,-151.0,0.00024699,7]
[340859225,1729951847613,-151.0,0.00024699,7]
[340859227,1729951847623,-151.0,0.00024699,7]
[340859230,1729951847632,-30121.36096035,0.000247,2]
[340859232,1729951847643,-151.0,0.000247,7]
[340859234,1729951847652,-10702.85558071,0.00024838,2]
[340859236,1729951847662,-500.0,0.0002487,7]
[340859238,1729951847671,-247.7723796,0.0002487,7]
[340859240,1729951847680,-500.0,0.0002487,7]
[340859242,1729951847690,-598.501937,0.000249,14]
[340859244,1729951847700,-1000.0,0.000249,2]
[340859246,1729951847709,-151.0,0.000249,7]
[340859248,1729951847720,-1989.80957248,0.0002498,3]
[340859250,1729951847730,-151.0,0.0002499,7]
[340859252,1729951847740,-7959.23828992,0.0002499,3]
[340859254,1729951847749,-500.0,0.00024999,2]
[340859256,1729951847759,-200.86520622,0.00024999,2]
[340859258,1729951847769,-247.12391771,0.00024999,2]
[340859260,1729951847779,-256.17354001,0.00024999,2]
[340859262,1729951847789,-504.92238298,0.00024999,2]
[340859264,1729951847798,-986.14705469,0.00025,2]
[340859266,1729951847808,-21692.37453275,0.00025,2]
[340859398,1729952057095,150.0,0.0003497,30]
[340859399,1729952128595,16775.77184026,0.0003497,30]
[340859424,1729952974156,-160.966972,0.00013973,2]
[340859450,1729953032627,-258.344197,0.00023213,2]
[340859451,1729953032641,-160.966972,0.00023435,2]
[340859452,1729953032653,-158.694669,0.00023462,2]
[340859453,1729953032664,-300.0,0.00023999,2]
[340859454,1729953032675,-831.11060921,0.00024399,2]
[340859455,1729953032698,-803.96924388,0.00024499,2]
[340859456,1729953032714,-288.0,0.00024499,2]
[340859457,1729953032730,-17184.299091,0.000245,2]
[340859460,1729953032744,-604.49,0.00024599,2]
[340859462,1729953032760,-803.96924386,0.00024599,2]
[340859465,1729953032773,-260.0,0.000246,2]
[340859467,1729953032786,-803.96924386,0.00024699,2]
[340859470,1729953032801,-803.96924386,0.00024799,2]
[340859472,1729953032814,-252.036,0.0002488,2]
[340859475,1729953032826,-1000.0,0.0002489,2]
[340859477,1729953032840,-803.96924386,0.00024899,2]
[340859479,1729953032852,-503.70856524,0.00024973,2]
[340859482,1729953032865,-3132.9,0.0002499,10]
[340859484,1729953032878,-296.75552882,0.00024999,2]
[340859487,1729953032891,-172.36469458,0.00024999,2]
[340859489,1729953032903,-500.0,0.00024999,2]
[340859491,1729953032917,-172.9867424,0.00024999,2]
[340859493,1729953032929,-179.321478,0.00024999,2]
[340859494,1729953032941,-249.46713018,0.00024999,2]
[340859495,1729953032955,-500.0,0.00024999,2]
[340859496,1729953032967,-575.10142836,0.00024999,2]
[340859497,1729953032979,-500.0,0.00024999,2]
[340859498,1729953032995,-500.0,0.00024999,2]
[340859499,1729953033007,-602.92123209,0.00024999,2]
[340859500,1729953033019,-500.0,0.00024999,2]
[340859501,1729953033031,-500.0,0.00024999,2]
[340859502,1729953033042,-428.10101017,0.00024999,2]
[340859503,1729953033054,-347.49708852,0.00024999,2]
[340859504,1729953033066,-500.0,0.00024999,2]
[340859505,1729953033077,-500.0,0.00024999,2]
[340859506,1729953033089,-500.0,0.00024999,2]
[340859507,1729953033101,-500.0,0.00024999,2]
[340859508,1729953033112,-188.8230901,0.00024999,2]
[340859509,1729953033124,-500.0,0.00024999,2]
[340859510,1729953033135,-573.1739041,0.00024999,2]
[340859511,1729953033147,-500.0,0.00024999,2]
[340859512,1729953033159,-500.0,0.00024999,2]
[340859513,1729953033171,-500.0,0.00024999,2]
[340859514,1729953033184,-111861.33309802,0.00025,2]
[340859515,1729953033202,-6786.00533144,0.00025,2]
[340859600,1729953039108,-2610.75,0.0002499,10]
[340859603,1729953039118,-120389.250003,0.00025,2]
[340859856,1729953040940,-1408.15436948,0.00025,2]
[340860156,1729953116524,166.49210581,0.00013873,2]
[340860160,1729953848369,160.966972,0.00013973,2]
[340860574,1729954238966,-158.694669,0.00023556,2]
[340860577,1729954238977,-160.609006,0.00023674,2]
[340860579,1729954238987,-234.603634,0.00024004,2]
[340860581,1729954238999,-248.18,0.0002405,2]
[340860583,1729954239009,-260.0,0.000246,2]
[340860585,1729954239020,-1221.74281997,0.00024877,2]
[340860588,1729954239033,-1000.0,0.0002488,2]
[340860590,1729954239045,-224.05723716,0.00024899,2]
[340860592,1729954239055,-775.15289103,0.00024899,2]
[340860594,1729954239065,-4374.7195732,0.0002497,2]
[340860596,1729954239075,-300.0,0.00024979,2]
[340860598,1729954239086,-196.271,0.00024979,8]
[340860600,1729954239097,-2175.63,0.0002498,10]
[340860603,1729954239109,-1813.02,0.0002498,10]
[340860605,1729954239119,-1510.85,0.0002498,10]
[340860607,1729954239130,-524.62699113,0.00024989,2]
[340860609,1729954239140,-619.2415449,0.00024989,2]
[340860611,1729954239150,-287.28216827,0.0002499,2]
[340860613,1729954239160,-56217.07333122,0.0002499,3]
[340861067,1729954243068,-213.1418146,0.0002498,10]
[340861083,1729954246026,-1045.9081854,0.0002498,10]
[340861084,1729954246036,-7579.23135277,0.0002499,3]
[340861087,1729954502798,160.966972,0.00013973,2]
[340861092,1729955393331,168241.0399428,0.00035022,120]
[340861150,1729955432075,-300.0,0.00022135,2]
[340861151,1729955432085,-300.0,0.00022135,2]
[340861153,1729955432095,-24860.0,0.00022136,2]
[340861155,1729955432104,-241.655802,0.00022483,2]
[340861157,1729955432114,-150.04692229,0.00022524,2]
[340861159,1729955432123,-150.19844598,0.000227,2]
[340861161,1729955432133,-500.0,0.000227,2]
[340861164,1729955432142,-500.0,0.000227,2]
[340861167,1729955432151,-1076.0142363,0.00022836,2]
[340861170,1729955432161,-243.439171,0.00023004,2]
[340861173,1729955432170,-678.25877966,0.000231,2]
[340861176,1729955432179,-2000.0,0.0002317,2]
[340861181,1729955432190,-508.96719328,0.000232,2]
[340861184,1729955432199,-334.11976621,0.000232,2]
[340861186,1729955432209,-500.98597457,0.000232,2]
[340861188,1729955432220,-500.88583952,0.000232,2]
[340861190,1729955432230,-500.0,0.000232,2]
[340861192,1729955432241,-500.0,0.000232,2]
[340861194,1729955432251,-198.55517911,0.000232,2]
[340861196,1729955432260,-500.78858853,0.000232,2]
[340861198,1729955432271,-500.0,0.000232,2]
[340861201,1729955432282,-500.0,0.000232,2]
[340861203,1729955432292,-367.02004617,0.000232,2]
[340861205,1729955432303,-420.0,0.0002405,2]
[340861207,1729955432312,-500.0,0.0002407,2]
[340861209,1729955432322,-420.0,0.00024349,2]
[340861211,1729955432331,-1000.0,0.0002457,2]
[340861213,1729955432342,-1000.0,0.0002457,2]
[340861215,1729955432353,-1000.0,0.0002457,2]
[340861217,1729955432363,-150.0,0.000246,2]
[340861219,1729955432373,-8891.17465365,0.00024803,2]
[340861221,1729955432382,-236.025,0.0002488,2]
[340861222,1729955432392,-1000.0,0.000249,2]
[340861224,1729955432402,-1049.2,0.0002497,10]
[340861225,1729955432411,-874.34,0.0002497,10]
[340861226,1729955432420,-728.61,0.0002497,10]
[340861227,1729955432430,-6314.66719577,0.00024971,2]
[340861228,1729955432439,-501.23671854,0.00024973,2]
[340861229,1729955432449,-502.93816305,0.00024973,2]
[340861230,1729955432458,-500.64646541,0.00024973,2]
[340861231,1729955432480,-500.0,0.00024973,2]
[340861232,1729955432491,-500.0,0.00024973,2]
[340861233,1729955432502,-634.34234514,0.00024973,2]
[340861234,1729955432512,-500.59420745,0.00024973,2]
[340861235,1729955432522,-500.92268459,0.00024973,2]
[340861236,1729955432532,-500.62582185,0.00024973,2]
[340861237,1729955432542,-416.65149735,0.00024973,2]
[340861238,1729955432552,-500.69668226,0.00024973,2]
[340861239,1729955432562,-161.37669868,0.00024973,2]
[340861240,1729955432572,-526.95767508,0.00024973,2]
[340861241,1729955432582,-418.85792519,0.00024973,2]
[340861242,1729955432591,-500.0,0.00024973,2]
[340861243,1729955432601,-500.67323579,0.00024973,2]
[340861244,1729955432610,-500.0,0.00024973,2]
[340861245,1729955432621,-500.0,0.00024973,2]
[340861246,1729955432631,-623.08054102,0.00024973,2]
[340861247,1729955432641,-500.0,0.00024973,2]
[340861248,1729955432651,-500.0,0.00024973,2]
[340861249,1729955432660,-63589.4081232,0.0002498,3]
[340861250,1729955432670,-254357.632493,0.0002499,3]
[340861251,1729955432682,-150.01,0.00024999,2]
[340861252,1729955432692,-500.0,0.00024999,2]
[340861253,1729955432702,-500.0,0.00024999,2]
[340861254,1729955432712,-500.0,0.00024999,2]
[340861255,1729955432722,-500.0,0.00024999,2]
[340861256,1729955432732,-500.0,0.00024999,2]
[340861257,1729955432744,-500.0,0.00024999,2]
[340861258,1729955432754,-500.0,0.00024999,2]
[340861259,1729955432764,-500.0,0.00024999,2]
[340861260,1729955432774,-500.0,0.00024999,2]
[340861261,1729955432785,-500.0,0.00024999,2]
[340861262,1729955432795,-500.0,0.00024999,2]
[340861263,1729955432806,-500.0,0.00024999,2]
[340861264,1729955432816,-500.0,0.00024999,2]
[340861265,1729955432825,-500.0,0.00024999,2]
[340861266,1729955432835,-451.58338359,0.00024999,2]
[340861267,1729955432844,-500.0,0.00024999,2]
[340861268,1729955432854,-500.0,0.00024999,2]
[340861269,1729955432864,-500.0,0.00024999,2]
[340861270,1729955432874,-500.0,0.00024999,2]
[340861271,1729955432884,-500.0,0.00024999,2]
[340861272,1729955432894,-500.0,0.00024999,2]
[340861273,1729955432905,-500.0,0.00024999,2]
[340861274,1729955432916,-500.0,0.00024999,2]
[340861275,1729955432926,-500.0,0.00024999,2]
[340861276,1729955432936,-500.0,0.00024999,2]
[340861277,1729955432947,-500.0,0.00024999,2]
[340861278,1729955432956,-500.0,0.00024999,2]
[340861279,1729955432966,-500.0,0.00024999,2]
[340861280,1729955432976,-500.0,0.00024999,2]
[340861281,1729955432986,-500.0,0.00024999,2]
[340861282,1729955432996,-500.0,0.00024999,2]
[340861283,1729955433008,-500.0,0.00024999,2]
[340861284,1729955433019,-500.0,0.00024999,2]
[340861285,1729955433028,-500.0,0.00024999,2]
[340861286,1729955433039,-500.0,0.00024999,2]
[340861287,1729955433048,-500.0,0.00024999,2]
[340861288,1729955433058,-500.0,0.00024999,2]
[340861289,1729955433069,-500.0,0.00024999,2]
[340861290,1729955433079,-500.0,0.00024999,2]
[340861291,1729955433088,-500.0,0.00024999,2]
[340861292,1729955433098,-500.0,0.00024999,2]
[340861293,1729955433107,-500.0,0.00024999,2]
[340861294,1729955433117,-500.0,0.00024999,2]
[340861295,1729955433126,-500.0,0.00024999,2]
[340861296,1729955433136,-500.0,0.00024999,2]
[340861297,1729955433146,-500.0,0.00024999,2]
[340861298,1729955433155,-500.0,0.00024999,2]
[340861299,1729955433165,-295.15833836,0.00024999,2]
[340861300,1729955433174,-500.0,0.00024999,2]
[340861301,1729955433184,-262182.01159968,0.00025,2]
[340861302,1729955433193,-7482.29666972,0.00025,2]
[340861303,1729955433203,-164.95655665,0.00025,2]
[340861304,1729955433213,-56756.21726207,0.00025,2]
[340861305,1729955433223,-202.76832214,0.00025,2]
[340861306,1729955433233,-508.25128857,0.00025,2]
[340861307,1729955433245,-10364.0,0.00025,2]
[340861308,1729955433255,-345.55628939,0.00025,2]
[340861309,1729955433266,-825.07847637,0.00025,2]
[340861310,1729955433275,-1443.35,0.00025,14]
[340861311,1729955433285,-1160.76,0.00025,14]
[340861312,1729955433295,-501.0,0.00025,4]
[340861313,1729955433304,-13174.06883825,0.00025,2]
[340861314,1729955433316,-5567.29504571,0.00025,120]
[340861315,1729955433331,-3236.43519928,0.00025,120]
[340861316,1729955433340,-613.02,0.00025,14]
[340861317,1729955433350,-268.06,0.00025,2]
[340861318,1729955433360,-1185.91,0.00025,14]
[340861319,1729955433369,-29916.13018239,0.00025,5]
[340861320,1729955433382,-20083.86981761,0.00025,5]
[340861321,1729955433392,-151.0,0.00025,7]
[340861322,1729955433402,-151.817329,0.00025,7]
[340861323,1729955433412,-151.0,0.00025,7]
[340861324,1729955433421,-300.359943,0.00025,11]
[340861325,1729955433432,-151.577242,0.00025,7]
[340861326,1729955433441,-151.0,0.00025,7]
[340861327,1729955433451,-152.623998,0.00025,7]
[340861328,1729955433460,-151.0,0.00025,7]
[340861329,1729955433470,-151.0,0.00025,7]
[340861330,1729955433480,-187.821614,0.00025,7]
[340861331,1729955433491,-500.92065526,0.00025073,2]
[340861332,1729955433501,-500.0,0.00025073,2]
[340861333,1729955433511,-502.03084255,0.00025073,2]
[340861334,1729955433521,-500.0,0.00025073,2]
[340861335,1729955433531,-501.01774499,0.00025073,2]
[340861336,1729955433540,-500.75535164,0.00025073,2]
[340861337,1729955433550,-501.34223311,0.00025073,2]
[340861338,1729955433560,-500.0,0.00025073,2]
[340861339,1729955433571,-500.0,0.00025073,2]
[340861340,1729955433581,-503.84859447,0.00025073,2]
[340861341,1729955433591,-216933.69571341,0.0002509,2]
[340861342,1729955433601,-2038.74775483,0.0002509,2]
[340861343,1729955433612,-150.112233,0.000251,8]
[340861344,1729955433622,-160.966972,0.00025156,2]
[340861345,1729955433631,-153.5822275,0.00025542,2]
[340861346,1729955433642,-526.45464581,0.00026,2]
[340861347,1729955433652,-1000.0,0.00026,120]
[340861348,1729955433663,-300.0,0.00026131,2]
[340861349,1729955433673,-678.2587796,0.00026277,2]
[340861350,1729955433686,-503.26686264,0.00026342,2]
[340861351,1729955433696,-504.79135082,0.00026342,2]
[340861352,1729955433707,-1000.0,0.00026342,2]
[340861353,1729955433716,-1000.0,0.00026342,2]
[340861354,1729955433727,-1000.0,0.00026442,2]
[340861355,1729955433738,-1000.0,0.00026442,2]
[340861356,1729955433748,-7458.94652043,0.0002649,2]
[340861357,1729955433759,-1500.0,0.00026573,2]
[340861358,1729955433769,-1035.73,0.000266,31]
[340861359,1729955433779,-1035.73,0.000266,31]
[340861360,1729955433789,-500.0,0.00026638,2]
[340861361,1729955433798,-500.0,0.00026638,2]
[340861362,1729955433808,-475.69260035,0.00026788,2]
[340861363,1729955433818,-502.14,0.00027,7]
[340861364,1729955433828,-1550.80693717,0.00027123,2]
[340861365,1729955433839,-151.50266283,0.00027367,2]
[340861366,1729955433849,-500.0,0.00027397,2]
[340861367,1729955433858,-2000.0,0.00027397,30]
[340861368,1729955433869,-2000.0,0.00027397,30]
[340861369,1729955433879,-2000.0,0.00027397,30]
[340861370,1729955433889,-3000.0,0.00027397,90]
[340861371,1729955433899,-3000.0,0.00027397,90]
[340861372,1729955433908,-3000.0,0.00027397,90]
[340861373,1729955433918,-3000.0,0.00027397,90]
[340861374,1729955433930,-2202.05537737,0.00027397,90]
[340861375,1729955433957,-797.94462263,0.00027397,90]
[340861376,1729955433971,-3000.0,0.00027397,90]
[340861377,1729955433981,-206.40444821,0.00027397,90]
[340861445,1729955438485,-573.40670331,0.000227,2]
[340861447,1729955438495,-367.23889379,0.00024989,2]
[340861449,1729955438504,-150.01,0.00024999,2]
[340861451,1729955438515,-500.0,0.00027397,2]
[340861453,1729955438524,-7.21672305,0.00027397,2]
[340861455,1729955438537,-492.78327695,0.00027397,2]
[340861457,1729955438547,-640.96871922,0.00027397,2]
[340861459,1729955438556,-1702.53300383,0.00027397,90]
[340861691,1729955440370,-587.3382578,0.00027397,90]
[340861695,1729955440382,-503.72429016,0.00027397,90]
[340861698,1729955440392,-248.76088018,0.00027397,90]
[340861708,1729955440433,-693.32025,0.00027397,90]
[340861712,1729955440446,-2057.91886982,0.00027397,90]
[340861715,1729955440455,-3000.0,0.00027397,90]
[340861718,1729955440465,-3000.0,0.00027397,90]
[340861721,1729955440474,-1022.11011058,0.00027397,90]
[340861725,1729955440494,-1977.88988942,0.00027397,90]
[340861728,1729955440504,-1406.56011058,0.00027397,90]
[340861732,1729955440516,-671.03,0.00027397,90]
[340861735,1729955440528,-922.40988942,0.00027397,90]
[340861739,1729955440537,-2989.50184177,0.00027397,90]
[340861742,1729955440549,-10.49815823,0.00027397,90]
[340861745,1729955440558,-3000.0,0.00027397,90]
[340861748,1729955440568,-3000.0,0.00027397,90]
[340861751,1729955440577,-3000.0,0.00027397,90]
[340861754,1729955440586,-3000.0,0.00027397,90]
[340861757,1729955440595,-3000.0,0.00027397,90]
[340861760,1729955440605,-3000.0,0.00027397,90]
[340861764,1729955440614,-2828.47158,0.00027397,90]
[340861767,1729955440624,-177.50332683,0.00027397,2]
[340861770,1729955440633,-1160.76,0.000274,14]
[340861773,1729955440643,-44147.87923582,0.000275,2]
[340861776,1729955440653,-613.02,0.000276,30]
[340861778,1729955440662,-258.7,0.000278,2]
[340861781,1729955440672,-1443.35,0.000278,14]
[340861784,1729955440686,-1185.91,0.000278,30]
[340861787,1729955440695,-607.18,0.0002798,10]
[340861790,1729955440705,-31842.51328121,0.0002799,2]
[340861793,1729955440714,-6232.90042171,0.00028,2]
[340861796,1729955440723,-382.53002647,0.00028,15]
[340861799,1729955440733,-151.0,0.00028,2]
[340861802,1729955440743,-1000.0,0.00028,120]
[340861805,1729955440752,-500.0,0.00028008,2]
[340861808,1729955440762,-500.0,0.00028008,2]
[340861811,1729955440772,-465.53463002,0.00028128,2]
[340861814,1729955440782,-162.91844,0.000283,8]
[340861816,1729955440792,-416.56891234,0.00028346,5]
[340862077,1729955443304,-1083.43108766,0.00028346,5]
[340862079,1729955443319,-1397.74212328,0.00028346,5]
[340862081,1729955443330,-102.25787672,0.00028346,5]
[340862083,1729955443341,-186.21995287,0.00028446,5]
[340862085,1729955443351,-1000.80627682,0.00028446,5]
[340862087,1729955443360,-1035.73,0.000287,31]
[340862089,1729955443370,-300.0,0.000288,2]
[340862091,1729955443380,-2000.0,0.00028914,5]
[340862093,1729955443390,-494.06768888,0.00029,2]
[340862367,1729955446116,-150.01,0.00027396,2]
[340862370,1729955446126,-363.46697676,0.00029,2]
[340862372,1729955446136,-247.77382097,0.00029,2]
[340862374,1729955446146,-4441.78100426,0.00029,2]
[340862376,1729955446155,-10000.0,0.00029,2]
[340862378,1729955446165,-1236.94662718,0.00029,2]
[340862380,1729955446180,-301.24211674,0.00029,2]
[340862382,1729955446191,-667.5,0.00029,2]
[340862384,1729955446202,-260.99999999,0.00029,2]
[340862387,1729955446213,-1565.28798229,0.00029,2]
[340862798,1729955526916,160.966972,0.00013973,2]
[340862801,1729955598239,500.0,0.00034979,30]
[340862802,1729955613730,500.0,0.00034979,30]
[340862803,1729955623724,500.0,0.00034979,30]
[340862804,1729955650124,500.0,0.00034979,30]
[340862805,1729955702885,623.0,0.00034979,30]
[340862807,1729955847628,300.0,0.00022,60]
[340862808,1729955915011,809.34453465,0.00022,60]
[340862810,1729956189282,160.966972,0.00013973,2]
[340862811,1729956276887,50000.0,0.00013973,2]
[340862944,1729956632260,-311.35027045,0.00022075,2]
[340862946,1729956632269,-166.666666,0.00022174,2]
[340862948,1729956632279,-158.694669,0.00022517,2]
[340862950,1729956632289,-300.0,0.00022693,2]
[340862952,1729956632298,-300.0,0.00022693,2]
[340862954,1729956632307,-24880.0,0.00022694,2]
[340862956,1729956632317,-500.0,0.000227,2]
[340862958,1729956632326,-397.60224105,0.000227,2]
[340862960,1729956632336,-500.47441899,0.000227,2]
[340862962,1729956632347,-500.63110869,0.000227,2]
[340862964,1729956632358,-212.006167,0.00023448,2]
[340862966,1729956632368,-212.006167,0.00023512,2]
[340862968,1729956632378,-212.006167,0.00023577,2]
[340862970,1729956632388,-212.006167,0.00023641,2]
[340862973,1729956632409,-166.666666,0.00023686,2]
[340862976,1729956632421,-212.006167,0.00023705,2]
[340862978,1729956632431,-212.006167,0.0002377,2]
[340862980,1729956632441,-599.06792221,0.00023834,2]
[340862982,1729956632450,-212.006167,0.00023834,2]
[340862984,1729956632460,-844.31718611,0.00023892,2]
[340862986,1729956632470,-212.006167,0.00023898,2]
[340862988,1729956632479,-212.006167,0.00023962,2]
[340862990,1729956632490,-3515.92189735,0.00023992,2]
[340862993,1729956632503,-1484.07810265,0.00023992,2]
[340862995,1729956632513,-500.0,0.00024,2]
[340862997,1729956632523,-212.006167,0.00024027,2]
[340862999,1729956632532,-1009.75394107,0.0002407,2]
[340863001,1729956632543,-212.006167,0.00024091,2]
[340863003,1729956632553,-118.07773512,0.00024155,2]
[340863282,1729956643433,-93.92843188,0.00024155,2]
[340863283,1729956643444,-212.006167,0.0002422,2]
[340863284,1729956643454,-212.006167,0.00024284,2]
[340863285,1729956643464,-212.006167,0.00024348,2]
[340863286,1729956643475,-212.006167,0.00024413,2]
[340863287,1729956643484,-244.34744008,0.0002445,2]
[340863288,1729956643495,-212.006167,0.00024477,2]
[340863289,1729956643504,-212.006167,0.00024541,2]
[340863291,1729956643514,-212.006167,0.00024605,2]
[340863292,1729956643524,-255.0,0.00024642,2]
[340863293,1729956643534,-212.006167,0.0002467,2]
[340863294,1729956643544,-2233.76773688,0.00024672,2]
[340863295,1729956643554,-528.0,0.00024673,2]
[340863296,1729956643564,-2404.187,0.00024673,2]
[340863297,1729956643574,-1135.129,0.00024673,2]
[340863298,1729956643584,-15248.6825608,0.0002489,2]
[340863299,1729956643595,-150.486736,0.00025,2]
[340863300,1729956643604,-166.666666,0.00025197,2]
[340863301,1729956643615,-201.0,0.0002633,15]
[340863302,1729956643625,-1025.8,0.000266,31]
[340863303,1729956643635,-1025.8,0.000266,31]
[340863304,1729956643645,-1025.8,0.000266,31]
[340863305,1729956643657,-1025.8,0.000266,31]
[340863306,1729956643667,-1025.8,0.000266,31]
[340863307,1729956643677,-1025.8,0.000266,31]
[340863308,1729956643687,-1025.8,0.000266,31]
[340863309,1729956643698,-1025.8,0.000266,31]
[340863310,1729956643708,-1025.8,0.000266,31]
[340863311,1729956643718,-1025.8,0.000266,31]
[340863312,1729956643728,-1025.8,0.000266,31]
[340863313,1729956643738,-1025.8,0.000266,31]
[340863314,1729956643748,-844.31718609,0.00026844,2]
[340863315,1729956643758,-500.0,0.00027397,2]
[340863316,1729956643768,-171.6840756,0.00027397,2]
[340863317,1729956643778,-500.0,0.00027814,5]
[340863318,1729956643788,-500.0,0.00027814,5]
[340863319,1729956643798,-382.86687001,0.00027814,5]
[340863320,1729956643808,-500.0,0.00027814,5]
[340863321,1729956643818,-500.0,0.00027814,2]
[340863322,1729956643828,-7282.15687989,0.00028497,2]
[340863323,1729956643838,-505.98,0.00028679,10]
[340863324,1729956643848,-51141.5072857,0.0002868,4]
[340863325,1729956643858,-500.0,0.00028689,2]
[340863326,1729956643867,-500.0,0.00028689,2]
[340863327,1729956643877,-249.6741722,0.00028689,2]
[340863328,1729956643886,-500.0,0.00028689,2]
[340863329,1729956643895,-500.0,0.00028689,2]
[340863330,1729956643907,-500.0,0.00028689,2]
[340863331,1729956643917,-500.0,0.00028689,2]
[340863332,1729956643928,-500.0,0.00028689,2]
[340863333,1729956643937,-500.0,0.00028689,2]
[340863334,1729956643947,-500.0,0.00028689,2]
[340863335,1729956643956,-51141.5072857,0.0002869,4]
[340863336,1729956643966,-1025.8,0.000287,31]
[340863337,1729956643975,-1025.8,0.000287,31]
[340863338,1729956643985,-1025.8,0.000287,31]
[340863339,1729956643995,-1025.8,0.000287,31]
[340863340,1729956644005,-1025.8,0.000287,31]
[340863341,1729956644015,-1025.8,0.000287,31]
[340863342,1729956644025,-1025.8,0.000287,31]